[Event "Titled Tuesday Blitz April 25 Early 2023"]
[White "Gupta, Abhijeet"]
[Black "Nakamura, Hikaru"]
[WhiteFideId "5010608"]
[BlackFideId "2016192"]
[WhiteElo "2528"]
[BlackElo "2885"]
[Result "1-0"]
[Round "05"]
[TimeControl "180+2"]
[Date "2023.04.25"]
[WhiteClock "0:00:09"]
[BlackClock "0:00:29"]

1. d4 {[%clk 0:03:00]}  Nf6 {[%clk 0:02:50]} 2. Nf3 {[%clk 0:03:01]}  c5 {[%clk 0:02:47]} 3. d5 {[%clk 0:02:59]}  d6 {[%clk 0:02:45]} 4. c4 {[%clk 0:02:57]}  g6 {[%clk 0:02:39]} 5. Nc3 {[%clk 0:02:57]}  e6 {[%clk 0:02:38]} 6. h3 {[%clk 0:02:55]}  exd5 {[%clk 0:02:37]} 7. cxd5 {[%clk 0:02:55]}  Bg7 {[%clk 0:02:38]} 8. e4 {[%clk 0:02:52]}  O-O {[%clk 0:02:37]} 9. Bd3 {[%clk 0:02:51]}  a6 {[%clk 0:02:35]} 10. a4 {[%clk 0:02:50]}  Nbd7 {[%clk 0:02:31]} 11. O-O {[%clk 0:02:50]}  Re8 {[%clk 0:02:29]} 12. Re1 {[%clk 0:02:49]}  Nh5 {[%clk 0:02:27]} 13. a5 {[%clk 0:02:40]}  Ne5 {[%clk 0:02:16]} 14. Be2 {[%clk 0:02:39]}  Nd7 {[%clk 0:02:11]} 15. Bg5 {[%clk 0:02:36]}  Bf6 {[%clk 0:02:01]} 16. Bh6 {[%clk 0:02:33]}  b5 {[%clk 0:01:55]} 17. axb6 {[%clk 0:02:30]}  Qxb6 {[%clk 0:01:54]} 18. Qd2 {[%clk 0:02:26]}  Rb8 {[%clk 0:01:53]} 19. Ra2 {[%clk 0:02:23]}  Bg7 {[%clk 0:01:22]} 20. Bxg7 {[%clk 0:02:15]}  Kxg7 {[%clk 0:01:23]} 21. Bf1 {[%clk 0:01:56]}  Nhf6 {[%clk 0:01:23]} 22. Qc2 {[%clk 0:01:42]}  a5 {[%clk 0:01:13]} 23. Nd2 {[%clk 0:01:38]}  Ba6 {[%clk 0:01:07]} 24. Bxa6 {[%clk 0:01:37]}  Qxa6 {[%clk 0:01:07]} 25. Rea1 {[%clk 0:01:37]}  Ne5 {[%clk 0:01:06]} 26. Rxa5 {[%clk 0:01:25]}  Qd3 {[%clk 0:01:07]} 27. Qxd3 {[%clk 0:01:20]}  Nxd3 {[%clk 0:01:07]} 28. b3 {[%clk 0:01:21]}  c4 {[%clk 0:01:07]} 29. bxc4 {[%clk 0:01:11]}  h5 {[%clk 0:00:54]} 30. Nb5 {[%clk 0:01:08]}  Nxe4 {[%clk 0:00:53]} 31. Nxe4 {[%clk 0:01:01]}  Rxe4 {[%clk 0:00:54]} 32. Nxd6 {[%clk 0:00:55]}  Rf4 {[%clk 0:00:54]} 33. f3 {[%clk 0:00:49]}  h4 {[%clk 0:00:54]} 34. Ne4 {[%clk 0:00:37]}  f5 {[%clk 0:00:50]} 35. Nd6 {[%clk 0:00:31]}  Rd4 {[%clk 0:00:47]} 36. Ra7+ {[%clk 0:00:30]}  Kf6 {[%clk 0:00:41]} 37. Rd1 {[%clk 0:00:25]}  Rb2 {[%clk 0:00:37]} 38. f4 {[%clk 0:00:17]}  Nxf4 {[%clk 0:00:32]} 39. Rxd4 {[%clk 0:00:10]}  Ne2+ {[%clk 0:00:33]} 40. Kf1 {[%clk 0:00:10]}  Nxd4 {[%clk 0:00:34]} 41. c5 {[%clk 0:00:10]}  Ke5 {[%clk 0:00:32]} 42. Nc4+ {[%clk 0:00:09]}  Kxd5 {[%clk 0:00:29]} 43. Nxb2 {[%clk 0:00:09]} 1-0


[Site "https://www.chess.com"]

[Event "Titled Tuesday Blitz April 25 Early 2023"]
[White "Mamedyarov, Shakhriyar"]
[Black "Zhigalko, Sergei"]
[WhiteFideId "13401319"]
[BlackFideId "13502956"]
[WhiteElo "2704"]
[BlackElo "2626"]
[Result "1-0"]
[Round "05"]
[TimeControl "180+2"]
[Date "2023.04.25"]
[WhiteClock "0:00:18"]
[BlackClock "0:00:01"]

1. d4 {[%clk 0:03:00]}  Nf6 {[%clk 0:03:00]} 2. c4 {[%clk 0:03:01]}  e6 {[%clk 0:03:00]} 3. Nc3 {[%clk 0:03:01]}  Bb4 {[%clk 0:03:01]} 4. g3 {[%clk 0:03:01]}  O-O {[%clk 0:02:56]} 5. Bg2 {[%clk 0:03:02]}  d6 {[%clk 0:02:43]} 6. Nf3 {[%clk 0:02:59]}  Nc6 {[%clk 0:02:39]} 7. O-O {[%clk 0:02:58]}  Bxc3 {[%clk 0:02:39]} 8. bxc3 {[%clk 0:02:59]}  e5 {[%clk 0:02:37]} 9. a4 {[%clk 0:02:56]}  Re8 {[%clk 0:02:29]} 10. a5 {[%clk 0:02:54]}  e4 {[%clk 0:02:27]} 11. Nd2 {[%clk 0:02:35]}  Bf5 {[%clk 0:02:14]} 12. Re1 {[%clk 0:02:08]}  Qd7 {[%clk 0:02:13]} 13. Nf1 {[%clk 0:02:04]}  Bh3 {[%clk 0:02:11]} 14. Bg5 {[%clk 0:01:57]}  Bxg2 {[%clk 0:02:07]} 15. Kxg2 {[%clk 0:01:58]}  Nh5 {[%clk 0:01:32]} 16. Qa4 {[%clk 0:01:54]}  h6 {[%clk 0:01:03]} 17. Bd2 {[%clk 0:01:52]}  Nf6 {[%clk 0:00:56]} 18. Ne3 {[%clk 0:01:49]}  a6 {[%clk 0:00:32]} 19. Rab1 {[%clk 0:01:44]}  Rab8 {[%clk 0:00:32]} 20. Rb2 {[%clk 0:01:38]}  Ng4 {[%clk 0:00:16]} 21. Reb1 {[%clk 0:01:25]}  Nxe3+ {[%clk 0:00:16]} 22. Bxe3 {[%clk 0:01:26]}  Qc8 {[%clk 0:00:16]} 23. c5 {[%clk 0:01:10]}  d5 {[%clk 0:00:12]} 24. c4 {[%clk 0:01:09]}  dxc4 {[%clk 0:00:09]} 25. d5 {[%clk 0:01:01]}  Ne7 {[%clk 0:00:04]} 26. c6 {[%clk 0:00:58]}  Nxd5 {[%clk 0:00:02]} 27. Ba7 {[%clk 0:00:58]}  b5 {[%clk 0:00:01]} 28. axb6 {[%clk 0:00:56]}  Nxb6 {[%clk 0:00:02]} 29. Bxb6 {[%clk 0:00:42]}  Rxb6 {[%clk 0:00:03]} 30. Rxb6 {[%clk 0:00:42]}  cxb6 {[%clk 0:00:04]} 31. Rxb6 {[%clk 0:00:42]}  e3 {[%clk 0:00:05]} 32. f3 {[%clk 0:00:40]}  c3 {[%clk 0:00:04]} 33. c7 {[%clk 0:00:33]}  Rf8 {[%clk 0:00:02]} 34. Qc4 {[%clk 0:00:32]}  c2 {[%clk 0:00:01]} 35. Qxc2 {[%clk 0:00:32]}  Qd7 {[%clk 0:00:02]} 36. Rxa6 {[%clk 0:00:25]}  Rc8 {[%clk 0:00:02]} 37. Rc6 {[%clk 0:00:26]}  Qd2 {[%clk 0:00:02]} 38. f4 {[%clk 0:00:17]}  Qe1 {[%clk 0:00:02]} 39. Kf3 {[%clk 0:00:18]}  Qf2+ {[%clk 0:00:02]} 40. Ke4 {[%clk 0:00:18]}  Re8+ {[%clk 0:00:01]} 41. Kd4 {[%clk 0:00:18]}  Rc8 {[%clk 0:00:01]} 42. Rd6 {[%clk 0:00:18]} 1-0


[Site "https://www.chess.com"]

[Event "Titled Tuesday Blitz April 25 Early 2023"]
[White "Deac, Bogdan-Daniel"]
[Black "Pultinevicius, Paulius"]
[WhiteFideId "1226380"]
[BlackFideId "12809390"]
[WhiteElo "2649"]
[BlackElo "2529"]
[Result "1-0"]
[Round "05"]
[TimeControl "180+2"]
[Date "2023.04.25"]
[WhiteClock "0:00:07"]
[BlackClock "0:00:03"]

1. Nf3 {[%clk 0:02:59]}  Nf6 {[%clk 0:02:57]} 2. c4 {[%clk 0:02:58]}  e6 {[%clk 0:02:55]} 3. b3 {[%clk 0:02:59]}  b6 {[%clk 0:02:53]} 4. g3 {[%clk 0:02:58]}  Bb7 {[%clk 0:02:52]} 5. Bg2 {[%clk 0:02:58]}  d5 {[%clk 0:02:44]} 6. cxd5 {[%clk 0:02:56]}  Bxd5 {[%clk 0:02:41]} 7. Bb2 {[%clk 0:02:56]}  c5 {[%clk 0:02:39]} 8. O-O {[%clk 0:02:51]}  Be7 {[%clk 0:02:38]} 9. Nc3 {[%clk 0:02:34]}  Bb7 {[%clk 0:02:32]} 10. d4 {[%clk 0:02:33]}  Nbd7 {[%clk 0:02:12]} 11. Re1 {[%clk 0:02:17]}  cxd4 {[%clk 0:02:10]} 12. Nxd4 {[%clk 0:02:15]}  Bxg2 {[%clk 0:02:08]} 13. Kxg2 {[%clk 0:02:16]}  Ne5 {[%clk 0:02:05]} 14. f4 {[%clk 0:01:44]}  Ng6 {[%clk 0:01:33]} 15. e4 {[%clk 0:01:24]}  Bc5 {[%clk 0:01:32]} 16. Na4 {[%clk 0:00:52]}  Bxd4 {[%clk 0:01:23]} 17. Qxd4 {[%clk 0:00:51]}  O-O {[%clk 0:01:24]} 18. Rad1 {[%clk 0:00:47]}  Qc8 {[%clk 0:01:17]} 19. Qf2 {[%clk 0:00:40]}  Qc6 {[%clk 0:01:01]} 20. Bxf6 {[%clk 0:00:38]}  gxf6 {[%clk 0:01:00]} 21. Rc1 {[%clk 0:00:32]}  Qb7 {[%clk 0:01:00]} 22. Qf3 {[%clk 0:00:30]}  Rfd8 {[%clk 0:00:57]} 23. Re2 {[%clk 0:00:28]}  Rac8 {[%clk 0:00:58]} 24. Rce1 {[%clk 0:00:27]}  b5 {[%clk 0:00:56]} 25. Nb2 {[%clk 0:00:25]}  Rc7 {[%clk 0:00:48]} 26. Nd1 {[%clk 0:00:22]}  Rcd7 {[%clk 0:00:46]} 27. Nf2 {[%clk 0:00:21]}  Kg7 {[%clk 0:00:27]} 28. h4 {[%clk 0:00:20]}  Ne7 {[%clk 0:00:26]} 29. g4 {[%clk 0:00:11]}  Kh8 {[%clk 0:00:24]} 30. g5 {[%clk 0:00:10]}  f5 {[%clk 0:00:23]} 31. h5 {[%clk 0:00:10]}  Rd4 {[%clk 0:00:22]} 32. Kg1 {[%clk 0:00:05]}  Rc8 {[%clk 0:00:21]} 33. Qe3 {[%clk 0:00:05]}  Qd7 {[%clk 0:00:19]} 34. exf5 {[%clk 0:00:04]}  Nxf5 {[%clk 0:00:20]} 35. Qe5+ {[%clk 0:00:04]}  Kg8 {[%clk 0:00:18]} 36. Ng4 {[%clk 0:00:05]}  Kf8 {[%clk 0:00:18]} 37. Qh8+ {[%clk 0:00:04]}  Ke7 {[%clk 0:00:18]} 38. Qf6+ {[%clk 0:00:05]}  Ke8 {[%clk 0:00:11]} 39. Qxf5 {[%clk 0:00:05]}  Kd8 {[%clk 0:00:08]} 40. Qf6+ {[%clk 0:00:05]}  Kc7 {[%clk 0:00:09]} 41. Qe5+ {[%clk 0:00:05]}  Kb7 {[%clk 0:00:09]} 42. Nf6 {[%clk 0:00:06]}  Qd8 {[%clk 0:00:08]} 43. Qxb5+ {[%clk 0:00:06]}  Ka8 {[%clk 0:00:09]} 44. Qe5 {[%clk 0:00:07]}  Rd3 {[%clk 0:00:10]} 45. Qe4+ {[%clk 0:00:06]}  Kb8 {[%clk 0:00:10]} 46. Kg2 {[%clk 0:00:06]}  Rcc3 {[%clk 0:00:11]} 47. Qe5+ {[%clk 0:00:06]}  Ka8 {[%clk 0:00:11]} 48. Ne4 {[%clk 0:00:06]}  Qc8 {[%clk 0:00:07]} 49. Nxc3 {[%clk 0:00:06]}  Rxc3 {[%clk 0:00:08]} 50. Qe4+ {[%clk 0:00:06]}  Kb8 {[%clk 0:00:08]} 51. Re3 {[%clk 0:00:07]}  Rc2+ {[%clk 0:00:08]} 52. R1e2 {[%clk 0:00:07]}  Rc1 {[%clk 0:00:09]} 53. Qe5+ {[%clk 0:00:06]}  Ka8 {[%clk 0:00:10]} 54. Qe4+ {[%clk 0:00:07]}  Kb8 {[%clk 0:00:10]} 55. Rd2 {[%clk 0:00:08]}  Qa6 {[%clk 0:00:02]} 56. Qb4+ {[%clk 0:00:06]}  Ka8 {[%clk 0:00:02]} 57. Qe4+ {[%clk 0:00:06]}  Kb8 {[%clk 0:00:02]} 58. Red3 {[%clk 0:00:07]}  Qb6 {[%clk 0:00:02]} 59. Rd8+ {[%clk 0:00:07]}  Rc8 {[%clk 0:00:02]} 60. Rxc8+ {[%clk 0:00:07]}  Kxc8 {[%clk 0:00:03]} 61. Qa8+ {[%clk 0:00:07]} 1-0


[Site "https://www.chess.com"]

[Event "Titled Tuesday Blitz April 25 Early 2023"]
[White "Shuvalova, Polina"]
[Black "Chigaev, Maksim"]
[WhiteFideId "24171760"]
[BlackFideId "4108116"]
[WhiteElo "2281"]
[BlackElo "2547"]
[Result "0-1"]
[Round "05"]
[TimeControl "180+2"]
[Date "2023.04.25"]
[WhiteClock "0:00:02"]
[BlackClock "0:00:02"]

1. e4 {[%clk 0:03:00]}  c5 {[%clk 0:02:54]} 2. Nf3 {[%clk 0:03:00]}  e6 {[%clk 0:02:55]} 3. c3 {[%clk 0:02:56]}  Nc6 {[%clk 0:02:51]} 4. d4 {[%clk 0:02:56]}  d5 {[%clk 0:02:51]} 5. exd5 {[%clk 0:02:51]}  Qxd5 {[%clk 0:02:52]} 6. Na3 {[%clk 0:02:49]}  Qd8 {[%clk 0:02:40]} 7. Nc4 {[%clk 0:02:41]}  Nf6 {[%clk 0:02:38]} 8. Nce5 {[%clk 0:02:40]}  cxd4 {[%clk 0:02:28]} 9. Nxc6 {[%clk 0:02:38]}  bxc6 {[%clk 0:02:29]} 10. Qxd4 {[%clk 0:02:37]}  Qxd4 {[%clk 0:02:25]} 11. Nxd4 {[%clk 0:02:34]}  Bb7 {[%clk 0:02:17]} 12. Be2 {[%clk 0:02:31]}  Bc5 {[%clk 0:02:10]} 13. O-O {[%clk 0:02:28]}  Bxd4 {[%clk 0:02:05]} 14. cxd4 {[%clk 0:02:28]}  a5 {[%clk 0:02:06]} 15. Bf4 {[%clk 0:02:13]}  Ba6 {[%clk 0:01:56]} 16. Bf3 {[%clk 0:02:11]}  Nd5 {[%clk 0:01:36]} 17. Bxd5 {[%clk 0:02:11]}  cxd5 {[%clk 0:01:37]} 18. Rfc1 {[%clk 0:02:10]}  O-O {[%clk 0:01:34]} 19. b3 {[%clk 0:02:09]}  a4 {[%clk 0:01:31]} 20. bxa4 {[%clk 0:01:47]}  Bc4 {[%clk 0:01:30]} 21. a3 {[%clk 0:01:47]}  Rxa4 {[%clk 0:01:29]} 22. Bd6 {[%clk 0:01:46]}  Rfa8 {[%clk 0:01:11]} 23. Rab1 {[%clk 0:01:43]}  h5 {[%clk 0:01:09]} 24. Bc5 {[%clk 0:01:41]}  Kh7 {[%clk 0:01:06]} 25. h4 {[%clk 0:01:41]}  Ba6 {[%clk 0:00:49]} 26. Rc3 {[%clk 0:01:40]}  Rc4 {[%clk 0:00:46]} 27. Rg3 {[%clk 0:01:38]}  f6 {[%clk 0:00:39]} 28. Rb4 {[%clk 0:01:05]}  Rxb4 {[%clk 0:00:37]} 29. Bxb4 {[%clk 0:00:57]}  Rc8 {[%clk 0:00:35]} 30. Rc3 {[%clk 0:00:57]}  Bc4 {[%clk 0:00:34]} 31. f3 {[%clk 0:00:55]}  Kg6 {[%clk 0:00:33]} 32. Kf2 {[%clk 0:00:51]}  Kf5 {[%clk 0:00:32]} 33. Bc5 {[%clk 0:00:38]}  Rb8 {[%clk 0:00:26]} 34. a4 {[%clk 0:00:27]}  Rb2+ {[%clk 0:00:26]} 35. Kg1 {[%clk 0:00:28]}  e5 {[%clk 0:00:26]} 36. Ra3 {[%clk 0:00:23]}  Ba6 {[%clk 0:00:22]} 37. a5 {[%clk 0:00:24]}  Rb1+ {[%clk 0:00:20]} 38. Kf2 {[%clk 0:00:23]}  Rd1 {[%clk 0:00:19]} 39. dxe5 {[%clk 0:00:15]}  fxe5 {[%clk 0:00:19]} 40. Rb3 {[%clk 0:00:16]}  Rd2+ {[%clk 0:00:17]} 41. Kg1 {[%clk 0:00:15]}  Rc2 {[%clk 0:00:18]} 42. Bf8 {[%clk 0:00:15]}  d4 {[%clk 0:00:18]} 43. Bxg7 {[%clk 0:00:10]}  d3 {[%clk 0:00:18]} 44. Bh6 {[%clk 0:00:09]}  d2 {[%clk 0:00:19]} 45. Bxd2 {[%clk 0:00:05]}  Rxd2 {[%clk 0:00:20]} 46. Rb6 {[%clk 0:00:05]}  Bc4 {[%clk 0:00:20]} 47. Rh6 {[%clk 0:00:04]}  Bf7 {[%clk 0:00:21]} 48. a6 {[%clk 0:00:03]}  Ra2 {[%clk 0:00:19]} 49. Rb6 {[%clk 0:00:03]}  Bc4 {[%clk 0:00:17]} 50. Rh6 {[%clk 0:00:04]}  Rxa6 {[%clk 0:00:14]} 51. Rxh5+ {[%clk 0:00:04]}  Kf4 {[%clk 0:00:15]} 52. Rg5 {[%clk 0:00:04]}  Bd3 {[%clk 0:00:09]} 53. Rg4+ {[%clk 0:00:04]}  Ke3 {[%clk 0:00:06]} 54. Kh2 {[%clk 0:00:04]}  e4 {[%clk 0:00:06]} 55. fxe4 {[%clk 0:00:04]}  Bxe4 {[%clk 0:00:07]} 56. Kg3 {[%clk 0:00:04]}  Ra2 {[%clk 0:00:06]} 57. Kh3 {[%clk 0:00:04]}  Bf5 {[%clk 0:00:06]} 58. Kh2 {[%clk 0:00:02]}  Bxg4 {[%clk 0:00:06]} 59. Kg3 {[%clk 0:00:01]}  Bh5 {[%clk 0:00:06]} 60. Kh3 {[%clk 0:00:01]}  Ra4 {[%clk 0:00:04]} 61. g3 {[%clk 0:00:02]}  Kf3 {[%clk 0:00:04]} 62. Kh2 {[%clk 0:00:02]}  Bg4 {[%clk 0:00:04]} 63. Kh1 {[%clk 0:00:02]}  Kxg3 {[%clk 0:00:02]} 64. h5 {[%clk 0:00:02]}  Ra1# {[%clk 0:00:02]} 0-1


[Site "https://www.chess.com"]

[Event "Titled Tuesday Blitz April 25 Early 2023"]
[White "Bluebaum, Matthias"]
[Black "Indjic, Aleksandar"]
[WhiteFideId "24651516"]
[BlackFideId "911925"]
[WhiteElo "2638"]
[BlackElo "2614"]
[Result "1/2-1/2"]
[Round "05"]
[TimeControl "180+2"]
[Date "2023.04.25"]
[WhiteClock "0:00:25"]
[BlackClock "0:00:32"]

1. d4 {[%clk 0:02:58]}  d5 {[%clk 0:03:00]} 2. c4 {[%clk 0:02:58]}  c6 {[%clk 0:03:00]} 3. Nf3 {[%clk 0:02:58]}  Nf6 {[%clk 0:03:01]} 4. Nc3 {[%clk 0:02:58]}  e6 {[%clk 0:02:59]} 5. Qc2 {[%clk 0:02:58]}  Nbd7 {[%clk 0:02:56]} 6. e4 {[%clk 0:02:57]}  Nxe4 {[%clk 0:02:54]} 7. Nxe4 {[%clk 0:02:58]}  dxe4 {[%clk 0:02:52]} 8. Qxe4 {[%clk 0:02:59]}  Bb4+ {[%clk 0:02:48]} 9. Bd2 {[%clk 0:02:59]}  Bxd2+ {[%clk 0:02:48]} 10. Nxd2 {[%clk 0:03:00]}  O-O {[%clk 0:02:47]} 11. Be2 {[%clk 0:03:00]}  Re8 {[%clk 0:02:45]} 12. f4 {[%clk 0:03:00]}  c5 {[%clk 0:02:43]} 13. O-O-O {[%clk 0:03:00]}  Qa5 {[%clk 0:02:42]} 14. a3 {[%clk 0:02:55]}  cxd4 {[%clk 0:02:41]} 15. Qxd4 {[%clk 0:02:49]}  e5 {[%clk 0:02:39]} 16. Qe3 {[%clk 0:02:33]}  Nf6 {[%clk 0:02:38]} 17. Nb3 {[%clk 0:02:14]}  Qc7 {[%clk 0:02:34]} 18. fxe5 {[%clk 0:02:01]}  Rxe5 {[%clk 0:02:32]} 19. Rd8+ {[%clk 0:01:56]}  Qxd8 {[%clk 0:02:32]} 20. Qxe5 {[%clk 0:01:56]}  Be6 {[%clk 0:02:32]} 21. Rd1 {[%clk 0:01:54]}  Nd7 {[%clk 0:02:23]} 22. Qf4 {[%clk 0:01:43]}  Rc8 {[%clk 0:02:12]} 23. Kb1 {[%clk 0:01:37]}  g6 {[%clk 0:01:34]} 24. Qd6 {[%clk 0:01:21]}  Qc7 {[%clk 0:01:26]} 25. Qxc7 {[%clk 0:01:00]}  Rxc7 {[%clk 0:01:27]} 26. Nd2 {[%clk 0:00:59]}  Ne5 {[%clk 0:01:26]} 27. b3 {[%clk 0:00:59]}  Kg7 {[%clk 0:01:15]} 28. Nf3 {[%clk 0:00:52]}  Kf6 {[%clk 0:01:16]} 29. Kb2 {[%clk 0:00:51]}  Nxf3 {[%clk 0:01:15]} 30. Bxf3 {[%clk 0:00:52]}  Ke5 {[%clk 0:01:15]} 31. Kc3 {[%clk 0:00:52]}  b5 {[%clk 0:01:14]} 32. Bd5 {[%clk 0:00:39]}  bxc4 {[%clk 0:01:14]} 33. bxc4 {[%clk 0:00:40]}  Bxd5 {[%clk 0:00:59]} 34. Rxd5+ {[%clk 0:00:40]}  Ke4 {[%clk 0:00:59]} 35. Rd2 {[%clk 0:00:37]}  Ke3 {[%clk 0:00:59]} 36. Rc2 {[%clk 0:00:31]}  a5 {[%clk 0:00:57]} 37. Rb2 {[%clk 0:00:31]}  f5 {[%clk 0:00:56]} 38. Rb5 {[%clk 0:00:29]}  Kf2 {[%clk 0:00:56]} 39. Rb2+ {[%clk 0:00:29]}  Ke3 {[%clk 0:00:55]} 40. Rb5 {[%clk 0:00:25]}  Kf2 {[%clk 0:00:31]} 41. Rb2+ {[%clk 0:00:25]}  Ke3 {[%clk 0:00:32]} 1/2-1/2


[Site "https://www.chess.com"]

[Event "Titled Tuesday Blitz April 25 Early 2023"]
[White "Mahdavi, Reza"]
[Black "Pranesh M"]
[WhiteFideId "12595926"]
[BlackFideId "35028600"]
[WhiteElo "2357"]
[BlackElo "2437"]
[Result "0-1"]
[Round "05"]
[TimeControl "180+2"]
[Date "2023.04.25"]
[WhiteClock "0:00:01"]
[BlackClock "0:00:16"]

1. Nf3 {[%clk 0:02:58]}  Nf6 {[%clk 0:02:59]} 2. g3 {[%clk 0:02:57]}  Nc6 {[%clk 0:02:57]} 3. d4 {[%clk 0:02:56]}  d5 {[%clk 0:02:57]} 4. Bg2 {[%clk 0:02:42]}  g6 {[%clk 0:02:57]} 5. O-O {[%clk 0:02:36]}  Bg7 {[%clk 0:02:58]} 6. b3 {[%clk 0:02:37]}  O-O {[%clk 0:02:58]} 7. Bb2 {[%clk 0:02:37]}  Ne4 {[%clk 0:02:58]} 8. c4 {[%clk 0:02:37]}  dxc4 {[%clk 0:02:47]} 9. bxc4 {[%clk 0:02:37]}  Bg4 {[%clk 0:02:47]} 10. e3 {[%clk 0:02:24]}  Na5 {[%clk 0:02:43]} 11. Qc2 {[%clk 0:02:22]}  Nd6 {[%clk 0:02:14]} 12. Nbd2 {[%clk 0:02:17]}  c5 {[%clk 0:01:57]} 13. dxc5 {[%clk 0:02:11]}  Bxb2 {[%clk 0:01:58]} 14. Qxb2 {[%clk 0:02:11]}  Ndxc4 {[%clk 0:01:58]} 15. Nxc4 {[%clk 0:02:12]}  Nxc4 {[%clk 0:01:59]} 16. Qxb7 {[%clk 0:02:12]}  Rc8 {[%clk 0:01:56]} 17. Qxa7 {[%clk 0:02:11]}  Bxf3 {[%clk 0:01:55]} 18. Bxf3 {[%clk 0:02:11]}  Nd2 {[%clk 0:01:56]} 19. Bg2 {[%clk 0:02:05]}  Nxf1 {[%clk 0:01:55]} 20. Rxf1 {[%clk 0:02:06]}  e6 {[%clk 0:01:49]} 21. a4 {[%clk 0:02:01]}  Qd2 {[%clk 0:01:36]} 22. c6 {[%clk 0:01:52]}  Ra8 {[%clk 0:01:20]} 23. Qc5 {[%clk 0:01:51]}  Rfc8 {[%clk 0:01:21]} 24. Ra1 {[%clk 0:01:43]}  Rxa4 {[%clk 0:01:17]} 25. Rxa4 {[%clk 0:01:21]}  Qd1+ {[%clk 0:01:17]} 26. Bf1 {[%clk 0:01:22]}  Qxa4 {[%clk 0:01:18]} 27. Bb5 {[%clk 0:01:23]}  Qd1+ {[%clk 0:01:16]} 28. Kg2 {[%clk 0:01:20]}  Qd8 {[%clk 0:00:37]} 29. h4 {[%clk 0:01:12]}  h5 {[%clk 0:00:37]} 30. Ba6 {[%clk 0:01:05]}  Rc7 {[%clk 0:00:36]} 31. e4 {[%clk 0:00:53]}  Qe7 {[%clk 0:00:26]} 32. Qc3 {[%clk 0:00:36]}  Qd6 {[%clk 0:00:22]} 33. Bb7 {[%clk 0:00:37]}  Re7 {[%clk 0:00:21]} 34. Qa1 {[%clk 0:00:34]}  Qc7 {[%clk 0:00:20]} 35. Qf6 {[%clk 0:00:34]}  e5 {[%clk 0:00:20]} 36. Qf3 {[%clk 0:00:32]}  Kg7 {[%clk 0:00:19]} 37. Qc3 {[%clk 0:00:32]}  Re6 {[%clk 0:00:18]} 38. Qc4 {[%clk 0:00:32]}  Re8 {[%clk 0:00:19]} 39. Kh2 {[%clk 0:00:31]}  Rd8 {[%clk 0:00:19]} 40. Kg2 {[%clk 0:00:32]}  Rd4 {[%clk 0:00:20]} 41. Qc2 {[%clk 0:00:32]}  Rd8 {[%clk 0:00:18]} 42. Qc3 {[%clk 0:00:32]}  Re8 {[%clk 0:00:18]} 43. Ba6 {[%clk 0:00:31]}  Kg8 {[%clk 0:00:18]} 44. Bb7 {[%clk 0:00:31]}  Rd8 {[%clk 0:00:18]} 45. Ba6 {[%clk 0:00:31]}  Rb8 {[%clk 0:00:18]} 46. Bc4 {[%clk 0:00:31]}  Qd6 {[%clk 0:00:16]} 47. Bd5 {[%clk 0:00:29]}  Rc8 {[%clk 0:00:16]} 48. Qf3 {[%clk 0:00:29]}  Rc7 {[%clk 0:00:16]} 49. Qe3 {[%clk 0:00:28]}  Kg7 {[%clk 0:00:17]} 50. Qg5 {[%clk 0:00:28]}  Ra7 {[%clk 0:00:17]} 51. Qc1 {[%clk 0:00:26]}  Qe7 {[%clk 0:00:14]} 52. Qc3 {[%clk 0:00:27]}  Kf8 {[%clk 0:00:14]} 53. Qf3 {[%clk 0:00:25]}  Kg7 {[%clk 0:00:14]} 54. Qb3 {[%clk 0:00:25]}  Rc7 {[%clk 0:00:11]} 55. Qc3 {[%clk 0:00:25]}  Qd6 {[%clk 0:00:12]} 56. f4 {[%clk 0:00:25]}  Kf6 {[%clk 0:00:12]} 57. Kh2 {[%clk 0:00:23]}  Re7 {[%clk 0:00:13]} 58. Qb2 {[%clk 0:00:23]}  Qc7 {[%clk 0:00:10]} 59. Qc3 {[%clk 0:00:23]}  Kg7 {[%clk 0:00:11]} 60. f5 {[%clk 0:00:22]}  gxf5 {[%clk 0:00:11]} 61. exf5 {[%clk 0:00:23]}  f6 {[%clk 0:00:12]} 62. Qf3 {[%clk 0:00:23]}  Kh6 {[%clk 0:00:11]} 63. Qe3+ {[%clk 0:00:22]}  Kg7 {[%clk 0:00:11]} 64. Qf3 {[%clk 0:00:23]}  Qd6 {[%clk 0:00:11]} 65. Be4 {[%clk 0:00:21]}  Qd2+ {[%clk 0:00:11]} 66. Kh3 {[%clk 0:00:21]}  Kh6 {[%clk 0:00:11]} 67. Qa3 {[%clk 0:00:20]}  Qd8 {[%clk 0:00:06]} 68. Qc1+ {[%clk 0:00:19]}  Kh7 {[%clk 0:00:06]} 69. Qc3 {[%clk 0:00:17]}  Rg7 {[%clk 0:00:06]} 70. Qf3 {[%clk 0:00:17]}  Kh6 {[%clk 0:00:06]} 71. Qe3+ {[%clk 0:00:17]}  Kh7 {[%clk 0:00:07]} 72. Qc3 {[%clk 0:00:17]}  Qd1 {[%clk 0:00:06]} 73. c7 {[%clk 0:00:15]}  Qg4+ {[%clk 0:00:07]} 74. Kh2 {[%clk 0:00:15]}  Qxe4 {[%clk 0:00:07]} 75. c8=Q {[%clk 0:00:15]}  Qe2+ {[%clk 0:00:08]} 76. Kg1 {[%clk 0:00:16]}  Qd1+ {[%clk 0:00:07]} 77. Kf2 {[%clk 0:00:17]}  Rd7 {[%clk 0:00:07]} 78. Qe3 {[%clk 0:00:02]}  Rd2+ {[%clk 0:00:06]} 79. Qxd2 {[%clk 0:00:02]}  Qxd2+ {[%clk 0:00:07]} 80. Kf3 {[%clk 0:00:03]}  Qd3+ {[%clk 0:00:08]} 81. Kf2 {[%clk 0:00:04]}  Qd2+ {[%clk 0:00:09]} 82. Kf3 {[%clk 0:00:04]}  Qd3+ {[%clk 0:00:09]} 83. Kf2 {[%clk 0:00:05]}  e4 {[%clk 0:00:10]} 84. Qc7+ {[%clk 0:00:04]}  Kh6 {[%clk 0:00:10]} 85. Qf4+ {[%clk 0:00:05]}  Kg7 {[%clk 0:00:11]} 86. Qc7+ {[%clk 0:00:06]}  Kh6 {[%clk 0:00:11]} 87. Qf4+ {[%clk 0:00:06]}  Kh7 {[%clk 0:00:12]} 88. Qe3 {[%clk 0:00:06]}  Qc2+ {[%clk 0:00:12]} 89. Qe2 {[%clk 0:00:06]}  Qc5+ {[%clk 0:00:12]} 90. Kg2 {[%clk 0:00:07]}  Qxf5 {[%clk 0:00:13]} 91. Qe3 {[%clk 0:00:07]}  Kg6 {[%clk 0:00:14]} 92. Qe2 {[%clk 0:00:07]}  Qd5 {[%clk 0:00:14]} 93. Qe3 {[%clk 0:00:07]}  Qa2+ {[%clk 0:00:14]} 94. Kh3 {[%clk 0:00:07]}  Qe6+ {[%clk 0:00:15]} 95. Kg2 {[%clk 0:00:08]}  Qg4 {[%clk 0:00:16]} 96. Qa7 {[%clk 0:00:07]}  Qe2+ {[%clk 0:00:16]} 97. Kh3 {[%clk 0:00:08]}  Qf1+ {[%clk 0:00:15]} 98. Kh2 {[%clk 0:00:08]}  Qe2+ {[%clk 0:00:16]} 99. Kh3 {[%clk 0:00:08]}  e3 {[%clk 0:00:16]} 100. Qe7 {[%clk 0:00:07]}  Qf1+ {[%clk 0:00:17]} 101. Kh2 {[%clk 0:00:07]}  Qf2+ {[%clk 0:00:17]} 102. Kh3 {[%clk 0:00:08]}  Qf5+ {[%clk 0:00:17]} 103. Kh2 {[%clk 0:00:08]}  Qe5 {[%clk 0:00:16]} 104. Qd8 {[%clk 0:00:02]}  e2 {[%clk 0:00:15]} 105. Qg8+ {[%clk 0:00:02]}  Kf5 {[%clk 0:00:16]} 106. Qc8+ {[%clk 0:00:03]}  Ke4 {[%clk 0:00:16]} 107. Qc4+ {[%clk 0:00:03]}  Kf3 {[%clk 0:00:16]} 108. Qd3+ {[%clk 0:00:01]}  Kf2 {[%clk 0:00:16]} 0-1


[Site "https://www.chess.com"]